fUST/lending_fUST_20240101
["ID","MTS","AMOUNT","RATE_DAILY","PERIOD"]
[309775814,1704111039337,-4906.45463586,0.00022,2]
[309775816,1704111039345,-166.666666,0.00022431,2]
[309775818,1704111039354,-166.666666,0.00022944,2]
[309775820,1704111039363,-166.666666,0.00023456,2]
[309775822,1704111039373,-174.41646,0.00023709,2]
[309775824,1704111039382,-166.666666,0.00023969,2]
[309775826,1704111039391,-166.666666,0.00024482,2]
[309775828,1704111039400,-162.84441625,0.00024998,2]
[309775830,1704111039410,-300.65316318,0.00024998,2]
[309775832,1704111039419,-155.03908595,0.00024999,2]
[309775834,1704111039428,-14695.72664133,0.00025,10]
[309775836,1704111039437,-2479.78133963,0.00025,2]
[309775838,1704111039446,-178.37917647,0.00026299,2]
[309775840,1704111039456,-612.61636559,0.000263,2]
[309775842,1704111039465,-355.335162,0.00026301,2]
[309775844,1704111039474,-2546.99337017,0.00027,2]
[309775846,1704111039483,-355.335162,0.00027275,2]
[309775848,1704111039492,-155.0,0.00027397,2]
[309775850,1704111039502,-355.335162,0.00028248,2]
[309775852,1704111039510,-155.0,0.00028767,2]
[309775854,1704111039520,-355.335162,0.00029221,2]
[309775856,1704111039529,-816.69780988,0.00029909,2]
[309775858,1704111039538,-1200.0,0.0003,4]
[309775860,1704111039548,-7020.37840216,0.0003,4]
[309775862,1704111039558,-638.08762863,0.0003,4]
[309775864,1704111039567,-154.84515485,0.0003,4]
[309775866,1704111039577,-200.0,0.0003,2]
[309775868,1704111039587,-245.0,0.0003,2]
[309775870,1704111039597,-155.0,0.00030137,2]
[309775872,1704111039607,-355.335162,0.00030194,2]
[309775874,1704111039616,-174.978679,0.00031223,2]
[309775876,1704111039625,-629.83489049,0.00031404,2]
[309775878,1704111039635,-23805.74372879,0.00031497,2]
[309776195,1704111045049,-154.84515485,0.00020624,2]
[309776197,1704111045058,-321.76626595,0.00020625,2]
[309776199,1704111045067,-223.5951374,0.00020625,2]
[309776201,1704111045076,-1094.25627121,0.00031497,2]
[309776203,1704111045086,-408.84089293,0.00031497,2]
[309776205,1704111045095,-1023.89051787,0.00031497,2]
[309776207,1704111045104,-281.91464801,0.00031497,3]
[309776209,1704111045113,-114.16333742,0.00031497,4]
[309776211,1704111045125,-80.16628735,0.00031497,4]
[309776214,1704111045135,-584.34464988,0.00031497,4]
[309776284,1704111046258,-3446.67628143,0.00031497,4]
[309776286,1704111046268,-155.0,0.00031507,2]
[309776288,1704111046276,-984.26645117,0.00032,2]
[309776290,1704111046285,-167.66,0.00032877,2]
[309776292,1704111046294,-333.90209669,0.00032877,2]
[309776294,1704111046303,-155.0,0.00032877,2]
[309776296,1704111046312,-20.54393098,0.00032974,2]
[309777023,1704111506877,-5942.09361641,0.0002359,2]
[309777024,1704111506901,-154.84515485,0.0002359,2]
[309777025,1704111506927,-858.99104883,0.00023591,2]
[309777026,1704111506950,-249.86733187,0.00023591,2]
[309777027,1704111506972,-166.08253714,0.00023591,2]
[309777028,1704111506999,-285.17267218,0.00023591,2]
[309777029,1704111507021,-166.23904276,0.00023592,2]
[309777030,1704111507043,-707.58589183,0.00023592,2]
[309777031,1704111507065,-413.28652308,0.00023592,2]
[309777032,1704111507087,-590.16182725,0.00023592,2]
[309777033,1704111507109,-943.79443279,0.00023592,2]
[309777034,1704111507132,-174.991816,0.00023593,2]
[309777035,1704111507156,-1584.15548242,0.00024859,2]
[309777036,1704111507180,-1677.73758043,0.0002486,2]
[309777037,1704111507202,-3373.65825201,0.0002486,2]
[309777038,1704111507267,156.48322816,0.0002359,2]
[309777039,1704111508084,241.99633195,0.0002359,2]
[309777040,1704111518306,154.84515485,0.00024858,2]
[309777041,1704111518739,1030.83076746,0.00024858,2]
[309777042,1704111617139,250.0,0.00023342,2]
[309777043,1704111642378,685.5196151,0.00023027,2]
[309777044,1704111644040,1885.54810261,0.00022843,2]
[309777045,1704111644064,1560.11359002,0.00022843,2]
[309777046,1704111900526,1462.93932904,0.00017131,2]
[309777047,1704111918517,1463.2095521,0.00017131,2]
[309777048,1704111929840,545.71535662,0.00017131,2]
[309777049,1704111930914,1143.52592837,0.00017131,2]
[309777050,1704111935627,12941.05225452,0.00017131,2]
[309777051,1704111937053,282852.93955478,0.00017131,2]
[309777052,1704111940524,1463.2095521,0.00017131,2]
[309777053,1704111950903,137513.5079689,0.00017131,2]
[309777054,1704111951853,545.71535662,0.00017131,2]
[309777055,1704111957455,154.84515485,0.00017131,2]
[309777056,1704111958533,1463.2095521,0.00018748,2]
[309777057,1704111973262,154.84515485,0.00017131,2]
[309777058,1704111977409,154.90706813,0.00017131,2]
[309777059,1704111977887,545.71535662,0.00018748,2]
[309777060,1704111978734,617.25257892,0.00018748,2]
[309777061,1704111993960,545.71535662,0.00018748,2]
[309777062,1704111999271,256.53046087,0.00018748,2]
[309777063,1704112009852,366.28685816,0.00018748,2]
[309777064,1704112012720,623.44278989,0.00018748,2]
[309777065,1704112142158,1250.0,0.000207,30]
[309777068,1704112150247,10000.0,0.000206,30]
[309777069,1704112150314,297.6005845,0.00018748,2]
[309777070,1704112151373,154.84515485,0.00018748,2]
[309777071,1704112152566,247.78510582,0.00018748,2]
[309777076,1704112160450,165.12838841,0.00018748,2]
[309777077,1704112162308,368.96838433,0.00018748,2]
[309777078,1704112163970,13471.73895981,0.00019965,2]
[309777079,1704112163994,11428.26104019,0.00019965,2]
[309777080,1704112166854,154.87190811,0.00018748,2]
[309777081,1704112168162,201.97677649,0.00018748,2]
[309777082,1704112169369,220.53140938,0.00018748,2]
[309777107,1704112232313,-3731.01777703,0.00020681,2]
[309777108,1704112232322,-230.0137314,0.00020681,2]
[309777109,1704112232332,-641.65330945,0.00020681,2]
[309777110,1704112232342,-241.99633195,0.00020681,2]
[309777111,1704112232351,-2702.82461258,0.00020682,2]
[309777112,1704112232362,-160.63706452,0.00020682,2]
[309777114,1704112232371,-154.84515485,0.00020682,2]
[309777116,1704112232380,-170.07739419,0.00020682,2]
[309777117,1704112232390,-166.08253714,0.00020682,2]
[309777118,1704112232399,-164.57325592,0.00020682,2]
[309777119,1704112232408,-1262.45083956,0.00020682,2]
[309777120,1704112232420,-20821.7469816,0.00020682,2]
[309777121,1704112232430,-154.84515485,0.00020683,2]
[309777122,1704112232439,-450.8673199,0.00020683,2]
[309777123,1704112232449,-1677.73758043,0.00020683,2]
[309777124,1704112232458,-2630.41248819,0.00020683,2]
[309777125,1704112232467,-1572.81659635,0.00020684,2]
[309777126,1704112232477,-585.77366444,0.00020684,2]
[309777127,1704112232486,-916.23178014,0.00020684,2]
[309777128,1704112232496,-154.84515485,0.00020685,2]
[309777129,1704112232506,-321.76626595,0.00020685,2]
[309777130,1704112232516,-154.84515485,0.00020685,2]
[309777131,1704112232526,-2809.91453257,0.00020685,2]
[309777132,1704112232535,-154.84515485,0.00020685,2]
[309777133,1704112232544,-5942.09361641,0.00020685,2]
[309777134,1704112232554,-15849.01373132,0.00020685,2]
[309777135,1704112232564,-15178.7193092,0.00020685,2]
[309777136,1704112232575,-156.85,0.00020685,3]
[309777137,1704112232585,-784.28,0.00020685,3]
[309777138,1704112232594,-1584.15548242,0.00020686,2]
[309777139,1704112232603,-2089.19910793,0.00020686,2]
[309777140,1704112232612,-552.93023041,0.00020686,2]
[309777141,1704112232622,-154.84515485,0.00020686,2]
[309777142,1704112232631,-253.03689703,0.00020686,2]
[309777143,1704112232641,-176.21297277,0.00020686,2]
[309777144,1704112232650,-328.6475025,0.00020686,2]
[309777145,1704112232659,-360.01037887,0.00020687,2]
[309777146,1704112232669,-943.79443279,0.00020687,2]
[309777147,1704112232678,-154.84515485,0.00020687,2]
[309777148,1704112232687,-154.84515485,0.00020687,2]
[309777149,1704112232697,-873.27865021,0.00020687,2]
[309777150,1704112232706,-2047.05701193,0.00020687,2]
[309777151,1704112232716,-154.84515485,0.00020687,2]
[309777152,1704112232725,-19622.64196242,0.00020687,2]
[309777153,1704112232734,-154.84515485,0.00020688,2]
[309777154,1704112232743,-593.46742734,0.00020688,2]
[309777155,1704112232753,-293.82215808,0.00020688,2]
[309777156,1704112232762,-154.84515485,0.00020688,2]
[309777157,1704112232771,-1773.68924842,0.00020688,2]
[309777158,1704112232780,-245.44220656,0.00020688,2]
[309777159,1704112232790,-285.17267218,0.00020688,2]
[309777160,1704112232799,-399.15407367,0.00020688,2]
[309777161,1704112232809,-413.28652308,0.00020688,2]
[309777162,1704112232818,-154.84515485,0.00020688,2]
[309777163,1704112232827,-7849.52199751,0.00020694,2]
[309777164,1704112232836,-590.16182725,0.00020695,2]
[309777165,1704112232845,-264.3616191,0.00020695,2]
[309777166,1704112232854,-14213.77123395,0.00020695,2]
[309777167,1704112232865,-26366.26316002,0.00020695,2]
[309777168,1704112232874,-2803.25312316,0.00020697,2]
[309777169,1704112232883,-8750.0,0.000207,30]
[309777170,1704112232893,-168.72524266,0.00020927,2]
[309777171,1704112232902,-244.46264764,0.00021044,2]
[309777172,1704112232912,-950.9520799,0.00021144,2]
[309777173,1704112232922,-187.528357,0.00021401,2]
[309777174,1704112232931,-204.667582,0.00021918,2]
[309777175,1704112232941,-756.31716698,0.00022497,5]
[309777176,1704112232950,-154.9660189,0.00022841,2]
[309777177,1704112232960,-1236.98313093,0.00022841,2]
[309777178,1704112232970,-207.26330535,0.00022843,2]
[309777179,1704112232980,-154.97478371,0.00022843,2]
[309777180,1704112232990,-200.0,0.00023138,7]
[309777181,1704112233000,-204.667582,0.000232,2]
[309777182,1704112233009,-524.56253249,0.00024481,2]
[309777183,1704112233019,-204.667582,0.00024482,2]
[309777184,1704112233028,-2030.51263553,0.00024997,2]
[309777185,1704112233038,-212.49909782,0.00024997,2]
[309777186,1704112233047,-1028.43738255,0.00024998,2]
[309777187,1704112233057,-13838.8200533,0.00024999,2]
[309777188,1704112233066,-178.37917647,0.00025,2]
[309777189,1704112233075,-612.61636559,0.00025,2]
[309777190,1704112233085,-2546.99337017,0.00027,2]
[309777191,1704112233094,-155.0,0.00027397,2]
[309777192,1704112233103,-407.75952232,0.00029397,2]
[309777193,1704112233114,-7020.37840216,0.0003,4]
[309777194,1704112233124,-638.08762863,0.0003,4]
[309777195,1704112233133,-163.0,0.0003,2]
[309777196,1704112233142,-155.0654998,0.00030583,4]
[309777197,1704112233152,-859.52702492,0.00030784,4]
[309777198,1704112233161,-309.62843966,0.00031495,4]
[309777199,1704112233172,-202.4993231,0.00031497,2]
[309777200,1704112233181,-984.26645117,0.00032,2]
[309777201,1704112233190,-1160.66430636,0.00032285,2]
[309777202,1704112233199,-332.00656857,0.00032972,4]
[309777203,1704112233208,-312.938063,0.00032972,4]
[309777204,1704112233217,-296.4347708,0.00032973,4]
[309777205,1704112233226,-599.94781354,0.00032974,2]
[309777206,1704112233236,-194.32962477,0.00032974,4]
[309777207,1704112233245,-408.84089293,0.00032974,2]
[309777208,1704112233254,-1023.89051787,0.00032974,2]
[309777209,1704112233263,-281.91464801,0.00032974,3]
[309777210,1704112233273,-4031.02093131,0.00032974,4]
[309777211,1704112233282,-777.00306135,0.00032974,2]
[309777212,1704112233292,-2674.06388022,0.00033,4]
[309777213,1704112233301,-183.35353954,0.00033,2]
[309777214,1704112233310,-163.0,0.00033,2]
[309777215,1704112233319,-3339.89143202,0.00033305,4]
[309777216,1704112233396,-155.47600856,0.00033983,4]
[309777217,1704112233406,-966.73929246,0.00033983,4]
[309777218,1704112233416,-4903.51282195,0.00033983,4]
[309777219,1704112233424,-12762.28425436,0.00033985,4]
[309777220,1704112233434,-4791.87004609,0.00033985,4]
[309777221,1704112233443,-155.27073944,0.00033985,4]
[309777222,1704112233452,-264.88782339,0.00033985,2]
[309777223,1704112233461,-244.88844088,0.00033985,4]
[309777224,1704112233470,-156.03442812,0.00033985,4]
[309777225,1704112233479,-1189.83314461,0.00033986,4]
[309777226,1704112233488,-362.61334674,0.00033987,4]
[309777227,1704112233498,-300.0,0.00033987,4]
[309777228,1704112233508,-1000.0,0.00034,7]
[309777229,1704112233517,-407.75952232,0.00034397,2]
[309777230,1704112233526,-620.02458723,0.00034623,2]
[309777231,1704112233535,-666.12182543,0.0003496,5]
[309777232,1704112233545,-3536.50923336,0.00035,2]
[309777233,1704112233554,-11134.38003332,0.00035,4]
[309777234,1704112233564,-10000.0,0.00035,15]
[309777235,1704112233573,-467.99722002,0.00035176,2]
[309777236,1704112233582,-911.81073323,0.00035176,2]
[309777237,1704112233592,-745.59053666,0.00035176,2]
[309777238,1704112233601,-197.24320223,0.00035176,2]
[309777239,1704112233610,-183.62626435,0.00035176,2]
[309777240,1704112233621,-166.17325717,0.00035176,2]
[309777241,1704112233631,-354.88678638,0.00035176,2]
[309777242,1704112233641,-189.4294468,0.00035176,2]
[309777243,1704112233650,-224.150371,0.00035616,120]
[309777244,1704112233659,-260.32144269,0.00036,2]
[309777245,1704112233668,-163.0,0.00036,2]
[309777246,1704112233678,-620.00122936,0.00036354,2]
[309777247,1704112233688,-1066.36,0.000375,7]
[309777248,1704112233698,-3262.69743881,0.00037505,2]
[309777249,1704112233707,-2285.66780373,0.00037505,2]
[309777250,1704112233718,-7277.34134051,0.00037505,2]
[309777251,1704112233727,-2263.20338075,0.00037505,2]
[309777252,1704112233737,-1000.0,0.00038,38]
[309777253,1704112233746,-500.0,0.00038356,2]
[309777254,1704112233756,-973.72829112,0.00038462,2]
[309777255,1704112233766,-155.11386267,0.00038462,4]
[309777256,1704112233776,-469.0,0.00038685,2]
[309777257,1704112233786,-155.43742685,0.00039,4]
[309777258,1704112233797,-4910.31043611,0.00039,4]
[309777259,1704112233806,-1000.0,0.00039,39]
[309777260,1704112233815,-500.0,0.0003915,7]
[309777261,1704112233824,-500.0,0.0003916,7]
[309777262,1704112233834,-150.0,0.0003917,60]
[309777263,1704112233843,-500.0,0.0003917,7]
[309777264,1704112233853,-150.02,0.0003917,7]
[309777265,1704112233862,-150.0,0.0003918,60]
[309777266,1704112233872,-150.0,0.0003919,60]
[309777267,1704112233881,-407.75952232,0.00039397,2]
[309777268,1704112233890,-50000.0,0.00039426,7]
[309777269,1704112233899,-150.83408251,0.00039505,2]
[309777270,1704112233909,-150.0,0.0003967,60]
[309777271,1704112233918,-150.0,0.0003968,60]
[309777272,1704112233927,-150.0,0.0003969,60]
[309777273,1704112233936,-190.82,0.0003969,60]
[309777274,1704112233946,-4029.10026796,0.0003999,4]
[309777275,1704112233955,-1277.46612497,0.0004,4]
[309777276,1704112233964,-1000.0,0.0004,40]
[309777277,1704112233974,-301.66816502,0.00040169,4]
[309777278,1704112233983,-490.41557556,0.00040596,4]
[309777279,1704112233993,-13639.11036057,0.00040602,5]
[309777280,1704112234002,-603.33633004,0.00040844,7]
[309777281,1704112234011,-1000.0,0.00040949,10]
[309777282,1704112234020,-186.39416325,0.00041,10]
[309777283,1704112234030,-1000.0,0.00041,41]
[309777284,1704112234039,-250.0,0.00041095,10]
[309777285,1704112234048,-153.0,0.00041507,2]
[309777286,1704112234085,-1206.67266007,0.00041878,30]
[309777287,1704112234095,-3000.0,0.00041975,2]
[309777288,1704112234104,-291.09183173,0.00041976,4]
[309777289,1704112234114,-155.24768981,0.00041976,4]
[309777290,1704112234123,-201.25785601,0.00041976,2]
[309777291,1704112234133,-9638.11631335,0.00041987,4]
[309777292,1704112234147,-1270.2800959,0.00041987,4]
[309777293,1704112234158,-32236.89931354,0.00041987,4]
[309777294,1704112234168,-2372.51008453,0.00041988,4]
[309777295,1704112234177,-2093.8261262,0.00041988,4]
[309777296,1704112234188,-154.84515485,0.00041989,4]
[309777297,1704112234198,-2500.0,0.00042,10]
[309777298,1704112234208,-1000.0,0.00042,42]
[309777299,1704112234217,-500.0,0.00042,2]
[309777300,1704112234226,-519.0,0.00042247,4]
[309777301,1704112234235,-500.0,0.00042465,10]
[309777302,1704112234245,-550.0,0.00042465,3]
[309777303,1704112234254,-1317.0,0.00042498,38]
[309777304,1704112234262,-155.05907829,0.00042523,4]
[309777305,1704112234271,-34185.1680834,0.000427,2]
[309777306,1704112234282,-1452.38142427,0.00042726,2]
[309777307,1704112234292,-887.82729152,0.00042735,3]
[309777308,1704112234301,-173.17305463,0.00042735,4]
[309777309,1704112234311,-2200.08628519,0.00042735,4]
[309777310,1704112234320,-2033.50987375,0.00042735,30]
[309777311,1704112234330,-155.27680423,0.00042735,4]
[309777312,1704112234339,-155.41457502,0.00042735,4]
[309777313,1704112234348,-155.05959984,0.00042735,4]
[309777314,1704112234358,-266.96065283,0.00042735,4]
[309777315,1704112234368,-309.67484219,0.00042735,2]
[309777316,1704112234377,-2734.2872534,0.00042735,120]
[309777317,1704112234386,-155.0625764,0.00042735,4]
[309777318,1704112234395,-155.16837526,0.00042735,4]
[309777319,1704112234405,-155.22254474,0.00042735,2]
[309777320,1704112234414,-434.2870284,0.00042735,4]
[309777321,1704112234424,-155.30230041,0.00042735,4]
[309777322,1704112234434,-870.00751872,0.00042735,4]
[309777323,1704112234442,-154.84515485,0.00042735,4]
[309777324,1704112234452,-200.0,0.00042735,4]
[309777325,1704112234462,-155.38672126,0.00042735,2]
[309777326,1704112234471,-9890.87127788,0.00042735,2]
[309777327,1704112234480,-160.3319505,0.00042735,4]
[309777328,1704112234489,-356.53319789,0.00042735,4]
[309777329,1704112234500,-4698.69617845,0.00042735,4]
[309777330,1704112234509,-155.13167905,0.00042735,4]
[309777331,1704112234518,-581.16315688,0.00042735,4]
[309777332,1704112234528,-155.44404099,0.00042735,4]
[309777333,1704112234538,-155.29052109,0.00042735,4]
[309777334,1704112234548,-196.29354506,0.00042735,4]
[309777335,1704112234559,-171.4425138,0.00042735,4]
[309777336,1704112234570,-159.3914027,0.00042735,4]
[309777337,1704112234580,-155.18941918,0.00042735,4]
[309777338,1704112234589,-155.57906451,0.00042735,4]
[309777339,1704112234598,-155.08787934,0.00042735,4]
[309777340,1704112234608,-155.04349051,0.00042735,4]
[309777341,1704112234618,-154.84515485,0.00042735,4]
[309777342,1704112234628,-300.95208125,0.00042735,4]
[309777343,1704112234638,-205.03392495,0.00042736,14]
[309777344,1704112234647,-313.00559707,0.00042737,4]
[309777345,1704112234657,-547.8899611,0.00042737,4]
[309777346,1704112234666,-379.14792797,0.00042739,7]
[309777347,1704112234676,-602.0325604,0.00042739,7]
[309777348,1704112234686,-505.41665695,0.00042739,7]
[309777349,1704112234697,-500.0,0.00042739,7]
[309777350,1704112234706,-281.84735845,0.00042739,7]
[309777351,1704112234716,-509.43376407,0.00042739,7]
[309777352,1704112234725,-823.11,0.00042739,7]
[309777353,1704112234735,-823.11,0.00042739,7]
[309777354,1704112234745,-823.11,0.00042739,7]
[309777355,1704112234755,-823.11,0.00042739,7]
[309777356,1704112234766,-823.11,0.00042739,7]
[309777357,1704112234775,-823.11,0.00042739,7]
[309777358,1704112234785,-823.11,0.00042739,7]
[309777359,1704112234797,-823.11,0.00042739,7]
[309777360,1704112234806,-823.11,0.00042739,7]
[309777361,1704112234816,-823.11,0.00042739,7]
[309777362,1704112234826,-823.11,0.00042739,7]
[309777363,1704112234836,-823.11,0.00042739,7]
[309777364,1704112234904,-823.11,0.00042739,7]
[309777365,1704112234913,-823.11,0.00042739,7]
[309777366,1704112234923,-776.1,0.00042739,7]
[309777367,1704112234932,-823.11,0.00042739,7]
[309777368,1704112234941,-776.1,0.00042739,7]
[309777369,1704112234950,-823.11,0.00042739,7]
[309777370,1704112234958,-823.11,0.00042739,7]
[309777371,1704112234968,-776.1,0.00042739,7]
[309777372,1704112234977,-823.11,0.00042739,7]
[309777373,1704112234986,-776.1,0.00042739,7]
[309777374,1704112234995,-823.11,0.00042739,7]
[309777375,1704112235005,-776.1,0.00042739,7]
[309777376,1704112235014,-823.11,0.00042739,7]
[309777377,1704112235024,-776.1,0.00042739,7]
[309777378,1704112235033,-823.11,0.00042739,7]
[309777379,1704112235043,-776.1,0.00042739,7]
[309777380,1704112235052,-776.1,0.00042739,7]
[309777381,1704112235062,-823.11,0.00042739,7]
[309777382,1704112235071,-776.1,0.00042739,7]
[309777383,1704112235081,-823.11,0.00042739,7]
[309777384,1704112235090,-500.0,0.00042739,7]
[309777385,1704112235100,-776.1,0.00042739,7]
[309777386,1704112235109,-523.27968472,0.00042739,7]
[309777387,1704112235119,-823.30432385,0.00042739,7]
[309777388,1704112235129,-776.1,0.00042739,7]
[309777389,1704112235139,-776.1,0.00042739,7]
[309777390,1704112235148,-776.1,0.00042739,7]
[309777391,1704112235158,-776.1,0.00042739,7]
[309777392,1704112235167,-776.1,0.00042739,7]
[309777393,1704112235177,-776.1,0.00042739,7]
[309777394,1704112235187,-776.1,0.00042739,7]
[309777395,1704112235196,-776.1,0.00042739,7]
[309777396,1704112235205,-776.1,0.00042739,7]
[309777397,1704112235214,-776.1,0.00042739,7]
[309777398,1704112235224,-776.1,0.00042739,7]
[309777399,1704112235233,-776.1,0.00042739,7]
[309777400,1704112235242,-776.1,0.00042739,7]
[309777401,1704112235252,-776.14577794,0.00042739,7]
[309777402,1704112235261,-828.3,0.00042739,7]
[309777403,1704112235271,-828.3,0.00042739,7]
[309777404,1704112235280,-828.3,0.00042739,7]
[309777405,1704112235289,-828.3,0.00042739,7]
[309777406,1704112235298,-828.3,0.00042739,7]
[309777407,1704112235307,-828.3,0.00042739,7]
[309777408,1704112235316,-828.3,0.00042739,7]
[309777409,1704112235326,-828.3,0.00042739,7]
[309777410,1704112235335,-828.3,0.00042739,7]
[309777411,1704112235345,-828.3,0.00042739,7]
[309777412,1704112235354,-828.3,0.00042739,7]
[309777413,1704112235364,-828.3,0.00042739,7]
[309777414,1704112235373,-828.3,0.00042739,7]
[309777415,1704112235382,-828.3,0.00042739,7]
[309777416,1704112235391,-828.3,0.00042739,7]
[309777417,1704112235401,-828.3,0.00042739,7]
[309777418,1704112235410,-828.3,0.00042739,7]
[309777419,1704112235419,-828.3,0.00042739,7]
[309777420,1704112235428,-828.3,0.00042739,7]
[309777421,1704112235437,-828.3,0.00042739,7]
[309777422,1704112235446,-828.3,0.00042739,7]
[309777423,1704112235455,-828.3,0.00042739,7]
[309777424,1704112235465,-828.3,0.00042739,7]
[309777425,1704112235474,-828.40267519,0.00042739,7]
[309777426,1704112235483,-479.05653453,0.00042739,7]
[309777427,1704112235492,-513.90335786,0.00042739,7]
[309777428,1704112235501,-500.0,0.00042739,7]
[309777429,1704112235510,-500.0,0.00042739,7]
[309777430,1704112235520,-506.02024553,0.00042739,7]
[309777431,1704112235529,-220.27619249,0.00042739,7]
[309777432,1704112235538,-513.84563944,0.00042739,7]
[309777433,1704112235548,-500.0,0.00042739,7]
[309777434,1704112235557,-526.90006251,0.00042739,7]
[309777435,1704112235566,-500.0,0.00042739,7]
[309777436,1704112235575,-515.01742927,0.00042739,7]
[309777437,1704112235585,-500.0,0.00042739,7]
[309777438,1704112235594,-500.0,0.00042739,7]
[309777439,1704112235604,-500.0,0.00042739,7]
[309777440,1704112235613,-500.0,0.00042739,7]
[309777441,1704112235623,-500.0,0.00042739,7]
[309777442,1704112235632,-500.0,0.00042739,7]
[309777443,1704112235642,-500.0,0.00042739,7]
[309777444,1704112235651,-500.0,0.00042739,7]
[309777445,1704112235660,-500.0,0.00042739,7]
[309777446,1704112235670,-500.0,0.00042739,7]
[309777447,1704112235679,-558.52198934,0.00042739,7]
[309777448,1704112235688,-172.94654987,0.00042739,7]
[309777449,1704112235698,-500.0,0.00042739,7]
[309777450,1704112235707,-500.0,0.00042739,7]
[309777451,1704112235717,-507.245514,0.00042739,7]
[309777452,1704112235726,-585.88863136,0.00042739,7]
[309777453,1704112235735,-172.89061758,0.00042739,7]
[309777454,1704112235745,-500.0,0.00042739,7]
[309777455,1704112235754,-500.0,0.00042739,7]
[309777456,1704112235764,-500.0,0.00042739,7]
[309777457,1704112235773,-500.0,0.00042739,7]
[309777458,1704112235783,-500.0,0.00042739,7]
[309777459,1704112235792,-500.0,0.00042739,7]
[309777460,1704112235802,-511.10277771,0.00042739,7]
[309777461,1704112235811,-500.0,0.00042739,7]
[309777462,1704112235820,-509.24746824,0.00042739,7]
[309777463,1704112235829,-500.0,0.00042739,7]
[309777464,1704112235838,-500.0,0.00042739,7]
[309777465,1704112235848,-531.50909884,0.00042739,7]
[309777466,1704112235858,-607.96601538,0.00042739,7]
[309777467,1704112235867,-500.0,0.00042739,7]
[309777468,1704112235877,-500.0,0.00042739,7]
[309777469,1704112235887,-500.0,0.00042739,7]
[309777470,1704112235896,-500.0,0.00042739,7]
[309777471,1704112235906,-500.0,0.00042739,7]
[309777472,1704112235915,-500.0,0.00042739,7]
[309777473,1704112235925,-500.0,0.00042739,7]
[309777474,1704112235935,-500.0,0.00042739,7]
[309777475,1704112235944,-500.0,0.00042739,7]
[309777476,1704112235955,-500.0,0.00042739,7]
[309777477,1704112235965,-500.0,0.00042739,7]
[309777478,1704112235976,-500.0,0.00042739,7]
[309777479,1704112235985,-611.56753224,0.00042739,7]
[309777480,1704112235995,-549.4159218,0.00042739,7]
[309777481,1704112236005,-500.0,0.00042739,7]
[309777482,1704112236014,-500.0,0.00042739,7]
[309777483,1704112236024,-500.0,0.00042739,7]
[309777484,1704112236033,-601.27649803,0.00042739,7]
[309777485,1704112236054,-500.0,0.00042739,7]
[309777486,1704112236064,-533.34295178,0.00042739,7]
[309777487,1704112236075,-500.0,0.00042739,7]
[309777488,1704112236085,-184.4655948,0.00042739,7]
[309777489,1704112236095,-500.0,0.00042739,7]
[309777490,1704112236105,-156.94447919,0.00042739,7]
[309777491,1704112236116,-500.0,0.00042739,7]
[309777492,1704112236126,-500.0,0.00042739,7]
[309777493,1704112236136,-500.0,0.00042739,7]
[309777494,1704112236146,-589.78927064,0.00042739,7]
[309777495,1704112236156,-500.0,0.00042739,7]
[309777496,1704112236166,-649.46095468,0.00042739,7]
[309777497,1704112236176,-280.0,0.00042739,7]
[309777498,1704112236186,-500.0,0.00042739,7]
[309777499,1704112236195,-500.0,0.00042739,7]
[309777500,1704112236205,-559.00191302,0.00042739,7]
[309777501,1704112236215,-500.0,0.00042739,7]
[309777502,1704112236320,-500.0,0.00042739,7]
[309777503,1704112236331,-518.17818111,0.00042739,7]
[309777504,1704112236340,-504.46668143,0.00042739,7]